[Event "Reykjavik Open 2024"]
[Site "Reykjavik"]
[Date "2024.03.16"]
[Round "2.21"]
[White "Stefansson, Vignir Vatnar"]
[Black "Kunz, Andre"]
[Result "*"]
[ECO "B42"]
[WhiteElo "2464"]
[BlackElo "2197"]
[Annotator "RC"]
[PlyCount "47"]
[EventDate "2024.03.12"]
[EventCountry "ISL"]
[SourceTitle "playchess.com"]
[Source "ChessBase"]
[SourceQuality "1"]
[TimeControl "40/5400+30:1800+30"]

1. e4 {[%emt 0:00:05]} c5 {[%emt 0:04:21]} 2. Nf3 {[%emt 0:01:08]} e6 {[%emt 0:00:05]} 3. d4 {[%emt 0:00:21]} cxd4 {[%emt 0:00:06]} 4. Nxd4 {[%emt 0:00:11]} a6 {[%emt 0:00:03]} 5. Bd3 {[%emt 0:00:42]} g6 {[%emt 0:00:23]} 6. O-O {[%emt 0:05:28]} Bg7 {[%emt 0:00:03]} 7. c3 {[%emt 0:03:37]} Ne7 {[%emt 0:00:18]} 8. Be3 {[%emt 0:05:58]} d5 {[%emt 0:02:22]} 9. Nd2 {[%emt 0:04:36]} O-O {[%emt 0:16:01]} 10. Qc2 {[%emt 0:15:12]} dxe4 {[%emt 0:23:29]} 11. Nxe4 {[%emt 0:04:36]} Nd5 {[%emt 0:00:04]} 12. Bg5 {[%emt 0:04:39]} Qc7 {[%emt 0:02:57]} 13. Rfd1 {[%emt 0:11:30]} f5 {[%emt 0:01:53]} 14. Ng3 {[%emt 0:04:36]} f4 {[%emt 0:02:49]} 15. Ne4 {[%emt 0:01:02]} h6 {[%emt 0:02:03]} 16. Bh4 {[%emt 0:02:48]} Bxd4 {[%emt 0:02:54]} 17. cxd4 {[%emt 0:06:28]} Qxc2 {[%emt 0:00:50]} 18. Bxc2 {[%emt 0:00:16]} g5 {[%emt 0:00:04]} 19. Nxg5 {[%emt 0:00:24]} hxg5 {[%emt 0:00:06]} 20. Bxg5 {[%emt 0:00:09]} Kg7 {[%emt 0:01:54]} 21. h4 {[%emt 0:01:06]} Rh8 {[%emt 0:03:52]} 22. Be4 {[%emt 0:02:22]} Nc6 {[%emt 0:00:35]} 23. Bf3 {[%emt 0:01:54]} Bd7 {[%emt 0:00:55]} 24. h5 {[%emt 0:01:36]} *

[Event "Reykjavik Open 2024"]
[Site "Reykjavik"]
[Date "2024.03.16"]
[Round "2.21"]
[White "Birkisson, Bardur Orn"]
[Black "Kunz, Andre"]
[Result "0-1"]
[ECO "B42"]
[WhiteElo "2189"]
[BlackElo "2197"]
[Annotator "RC"]
[PlyCount "80"]
[EventDate "2024.03.12"]
[EventCountry "ISL"]
[SourceTitle "playchess.com"]
[Source "ChessBase"]
[SourceQuality "1"]
[TimeControl "40/5400+30:1800+30"]

1. e4 {[%emt 0:00:05]} c5 {[%emt 0:04:21]} 2. Nf3 {[%emt 0:01:08]} e6 {[%emt 0:00:05]} 3. d4 {[%emt 0:00:21]} cxd4 {[%emt 0:00:06]} 4. Nxd4 {[%emt 0:00:11]} a6 {[%emt 0:00:03]} 5. Bd3 {[%emt 0:00:42]} g6 {[%emt 0:00:23]} 6. O-O {[%emt 0:05:28]} Bg7 {[%emt 0:00:03]} 7. c3 {[%emt 0:03:37]} Ne7 {[%emt 0:00:18]} 8. Be3 {[%emt 0:05:58]} d5 {[%emt 0:02:22]} 9. Nd2 {[%emt 0:04:36]} O-O {[%emt 0:16:01]} 10. Qc2 {[%emt 0:15:12]} dxe4 {[%emt 0:23:29]} 11. Nxe4 {[%emt 0:04:36]} Nd5 {[%emt 0:00:04]} 12. Bg5 {[%emt 0:04:39]} Qc7 {[%emt 0:02:57]} 13. Rfd1 {[%emt 0:11:30]} f5 {[%emt 0:01:53]} 14. Ng3 {[%emt 0:04:36]} f4 {[%emt 0:02:49]} 15. Ne4 {[%emt 0:01:02]} h6 {[%emt 0:02:03]} 16. Bh4 {[%emt 0:02:48]} Bxd4 {[%emt 0:02:54]} 17. cxd4 {[%emt 0:06:28]} Qxc2 {[%emt 0:00:50]} 18. Bxc2 {[%emt 0:00:16]} g5 {[%emt 0:00:04]} 19. Nxg5 {[%emt 0:00:24]} hxg5 {[%emt 0:00:06]} 20. Bxg5 {[%emt 0:00:09]} Kg7 {[%emt 0:01:54]} 21. h4 {[%emt 0:01:06]} Rh8 {[%emt 0:03:52]} 22. Be4 {[%emt 0:02:22]} Nc6 {[%emt 0:00:35]} 23. Bf3 {[%emt 0:01:54]} Bd7 {[%emt 0:00:55]} 24. h5 {[%emt 0:01:36]} Raf8 {[%emt 0:02:05]} 25. Bg4 {[%emt 0:03:13]} Nf6 {[%emt 0:02:17]} 26. Bxf6+ {[%emt 0:04:58]} Kxf6 {[%emt 0:00:25]} 27. Rac1 {[%emt 0:03:14]} Rfg8 {[%emt 0:04:46]} 28. f3 {[%emt 0:02:03]} Nb4 {[%emt 0:02:02]} 29. d5 {[%emt 0:02:49]} Nxd5 {[%emt 0:00:05]} 30. Rxd5 {[%emt 0:00:53]} exd5 {[%emt 0:00:04]} 31. Bxd7 {[%emt 0:00:08]} Rxh5 {[%emt 0:00:04]} 32. Bg4 {[%emt 0:01:12]} Re5 {[%emt 0:00:05]} 33. Kf2 {[%emt 0:00:49]} Rge8 {[%emt 0:00:09]} 34. Rc2 {[%emt 0:00:14]} Re1 {[%emt 0:00:22]} 35. Bc8 {[%emt 0:02:07]} d4 {[%emt 0:05:34]} 36. Bxb7 {[%emt 0:00:30]} d3 {[%emt 0:00:04]} 37. Rc6+ {[%emt 0:00:45]} Kg5 {[%emt 0:00:24]} 38. Rc5+ {[%emt 0:00:16]} Kh4 {[%emt 0:00:20]} 39. Be4 {[%emt 0:00:39]} d2 {[%emt 0:00:17]} 40. Bg6 {[%emt 0:00:11]} R8e2# {[%emt 0:00:05]} 0-1

[Event "Reykjavik Open 2024"]
[Site "Reykjavik"]
[Date "2024.03.16"]
[Round "2.22"]
[White "Stefansson, Vignir Vatnar"]
[Black "Karamsetty, Jeevan"]
[Result "1-0"]
[ECO "D30"]
[WhiteElo "2464"]
[BlackElo "2187"]
[Annotator "TA"]
[PlyCount "77"]
[EventDate "2024.03.12"]
[EventCountry "ISL"]
[SourceTitle "playchess.com"]
[Source "ChessBase"]
[SourceQuality "1"]
[TimeControl "40/5400+30:1800+30"]

{[%evp 19,77,32,25,14,22,18,25,8,30,0,34,6,11,0,0,0,0,0,0,0,0,-44,0,-79,0,0,23,0,12,31,31,8,39,20,58,72,97,104,99,70,63,64,74,59,55,64,135,141,146,122,189,136,219,177,279,261,368,355,366,366]} 1. d4 {[%emt 0:00:14]} d5 {[%emt 0:00:02]} 2. c4 {[%emt 0:00:20]} e6 {[%emt 0:00:06]} 3. Nf3 {[%emt 0:01:03]} c5 {[%emt 0:00:52]} 4. cxd5 {[%emt 0:00:09]} exd5 {[%emt 0:00:02]} 5. g3 {[%emt 0:00:15]} Nc6 {[%emt 0:00:37]} 6. Bg2 {[%emt 0:00:08]} Nf6 {[%emt 0:00:08]} 7. O-O {[%emt 0:00:07]} Be7 {[%emt 0:00:54]} 8. dxc5 {[%emt 0:00:12]} Bxc5 {[%emt 0:00:00]} 9. Qc2 {[%emt 0:02:46]} Bb6 {[%emt 0:07:54]} 10. Nc3 {[%emt 0:00:37]} O-O {[%emt 0:02:22]} 11. Bg5 {[%emt 0:01:00]} d4 {[%emt 0:04:19]} 12. Ne4 {[%emt 0:06:02]} Bf5 {[%emt 0:02:41]} 13. Nfd2 {[%emt 0:00:42] Weiß hat minimalen Vorteil.} Rc8 {[%emt 0:16:58]} 14. Qd1 {[%emt 0:03:58]} Re8 {[%emt 0:05:19][%cal Oe8e6] [#]} 15. Rc1 $1 {[%emt 0:02:05][%cal Od1b3]} Qe7 {[%emt 0:14:33]} 16. Re1 {[%emt 0:05:37][%cal Od1a4]} Ba5 {[%emt 0:03:56][%cal Rf5e4]} 17. Nxf6+ {[%emt 0:01:34]} gxf6 {[%emt 0:00:09]} 18. Bf4 {[%emt 0:00:42]} Ne5 {[%emt 0:19:01] Und jetzt ...Rxc1 wäre schön.} 19. Qa4 {[%emt 0:05:50][%csl LRa5,LRd4]} Bb6 {[%emt 0:00:27]} 20. Qb5 {[%emt 0:12:18]} Bd7 {[%emt 0:04:27]} 21. Qd5 {[%emt 0:02:11] [#]} (21. Qb3 $11 {bleibt in der Remisbreite.}) 21... Bc6 {[%emt 0:03:23]} (21... Rxc1 $1 $17 22. Rxc1 Bc6) 22. Qb3 $11 {[%emt 0:00:12]} Kg7 {[%emt 0:01:27]} 23. Bxc6 {[%emt 0:06:23]} (23. Bxe5 {vereinfacht} fxe5 24. Bxc6 bxc6 25. Nc4) 23... Nxc6 {[%emt 0:01:12]} 24. Qf3 {[%emt 0:01:14]} (24. Qd5 {mit weiteren Verwicklungen.} Nb4 25. Qh5 Qe6 26. Nf3) 24... Qe6 {[%emt 0:02:53] Es drohte Qg4+} 25. a3 {[%emt 0:04:16]} Bc7 {[%emt 0:06:23]} 26. Rc5 {[%emt 0:03:04] Schwarz muss nun Bxc7 beachten.} Ne5 {[%emt 0:01:20]} 27. Bxe5 {[%emt 0:05:25]} (27. Qxb7 $2 Nd3 28. exd3 (28. Rc6 $2 Qh3 $19) 28... Qxe1+ 29. Kg2 Bxf4 $19) 27... Bxe5 {[%emt 0:00:45]} 28. Rxc8 {[%emt 0:00:40]} Rxc8 {[%emt 0:01:30]} 29. Qd3 {[%emt 0:04:36] Es drohte Rc2} Qc6 {[%emt 0:00:42]} 30. Nb3 {[%emt 0:00:25]} Qc2 {[%emt 0:00:31]} 31. Rc1 {[%emt 0:00:21]} (31. Nxd4 $2 Qxd3 (31... Qxb2 $2 32. Nf5+ Kh8 33. Rb1 $18) 32. exd3 Bxd4 $19) 31... Qxd3 {[%emt 0:00:25]} 32. exd3 $14 {[%emt 0:00:05][%mdl 4096] Endspiel. KRB-KRN} Rd8 {[%emt 0:00:36]} (32... Rxc1+ $14 33. Nxc1 f5) 33. f4 $16 {[%emt 0:00:39]} Bd6 {[%emt 0:00:31]} 34. Kg2 {[%emt 0:01:48]} b6 {[%emt 0:00:32]} (34... f5 $16 35. Rc4 (35. Nxd4 Bxf4 36. Nxf5+ Kf6 $16) 35... Kf6 36. Nxd4 (36. Rxd4 Bc7 $16) 36... h5) 35. Rc4 {[%emt 0:00:43]} (35. Nxd4 $18 h6 (35... Bxa3 $2 36. Nf5+ Kg6 37. Nh4+ Kg7 38. bxa3 $18) 36. Nc6) 35... Re8 {[%emt 0:00:20]} (35... Bf8 $16 {war angesagt.} 36. a4 (36. Nxd4 Rd5 $16) (36. Rxd4 Rc8 $18) 36... f5) 36. Kf2 {[%emt 0:00:46]} (36. Rxd4 Re2+ 37. Kf3 Rxb2 38. Rxd6 Rxb3 $14) 36... b5 {[%emt 0:00:40]} (36... Kg6 {ist wohl besser.} 37. Nxd4 (37. Rxd4 Rd8 $18) 37... Bc5) 37. Rc6 $18 {[%emt 0:00:25]} ({Auf keinen Fall} 37. Rxd4 Bf8 38. Rd7 Rc8 $18) 37... Bb8 {[%emt 0:00:32]} (37... Be7 {war einen Versuch wert.} 38. Nxd4 b4) 38. Nxd4 {[%emt 0:00:18]} Rd8 {[%emt 0:00:28]} 39. Ke3 {[%emt 0:00:12] Gewichteter Fehlerwert: Weiß=0.17 (sehr präzise) /Schwarz=0.27 (präzise) .  Fehler:       	Weiß=2     	Schwarz=6     Ungenau:       	Weiß=3     	Schwarz=4     OK:         	Weiß=9     	Schwarz=10    Bester:       	Weiß=1     	---} ({Keinesfalls} 39. Nxb5 Rd5 $18) 1-0

[Event "Reykjavik Open 2024"]
[Site "Reykjavik"]
[Date "2024.03.16"]
[Round "2.22"]
[White "Seemann, Jakub"]
[Black "Karamsetty, Jeevan"]
[Result "*"]
[ECO "D30"]
[WhiteElo "2451"]
[BlackElo "2187"]
[Annotator "RC"]
[PlyCount "35"]
[EventDate "2024.03.12"]
[EventCountry "ISL"]
[SourceTitle "playchess.com"]
[Source "ChessBase"]
[SourceQuality "1"]
[TimeControl "40/5400+30:1800+30"]

1. d4 {[%emt 0:00:14]} d5 {[%emt 0:00:02]} 2. c4 {[%emt 0:00:20]} e6 {[%emt 0:00:06]} 3. Nf3 {[%emt 0:01:03]} c5 {[%emt 0:00:52]} 4. cxd5 {[%emt 0:00:09]} exd5 {[%emt 0:00:02]} 5. g3 {[%emt 0:00:15]} Nc6 {[%emt 0:00:37]} 6. Bg2 {[%emt 0:00:08]} Nf6 {[%emt 0:00:08]} 7. O-O {[%emt 0:00:07]} Be7 {[%emt 0:00:54]} 8. dxc5 {[%emt 0:00:12]} Bxc5 {[%emt 0:00:00]} 9. Qc2 {[%emt 0:02:46]} Bb6 {[%emt 0:07:54]} 10. Nc3 {[%emt 0:00:37]} O-O {[%emt 0:02:22]} 11. Bg5 {[%emt 0:01:00]} d4 {[%emt 0:04:19]} 12. Ne4 {[%emt 0:06:02]} Bf5 {[%emt 0:02:41]} 13. Nfd2 {[%emt 0:00:42]} Rc8 {[%emt 0:16:58]} 14. Qd1 {[%emt 0:03:58]} Re8 {[%emt 0:05:19]} 15. Rc1 {[%emt 0:02:05]} Qe7 {[%emt 0:14:33]} 16. Re1 {[%emt 0:05:37]} Ba5 {[%emt 0:03:56]} 17. Nxf6+ {[%emt 0:01:34]} gxf6 {[%emt 0:00:09]} 18. Bf4 {[%emt 0:00:42]} *

[Event "Reykjavik Open 2024"]
[Site "Reykjavik"]
[Date "2024.03.16"]
[Round "2.23"]
[White "Seemann, Jakub"]
[Black "Larkin, Vladyslav"]
[Result "1-0"]
[ECO "B07"]
[WhiteElo "2451"]
[BlackElo "2450"]
[Annotator "TA"]
[PlyCount "93"]
[EventDate "2024.03.12"]
[EventCountry "ISL"]
[SourceTitle "playchess.com"]
[Source "ChessBase"]
[SourceQuality "1"]
[TimeControl "40/5400+30:1800+30"]

{[%evp 24,93,71,70,69,48,82,29,61,58,86,91,93,46,45,24,59,71,52,38,53,62,78,22,43,35,45,22,98,63,68,34,30,64,72,110,418,184,174,181,187,185,178,175,304,271,360,306,465,468,430,326,426,466,475,476,644,622,29987,29988,29988,29989,29989,29990,29990,29991,29991,29990,29990,29991,29991,-23]} 1. e4 {[%emt 0:00:07]} d6 {[%emt 0:00:27]} 2. d4 {[%emt 0:00:06]} Nf6 {[%emt 0:00:08]} 3. Nc3 {[%emt 0:00:06]} e5 {[%emt 0:00:23]} 4. Nge2 {[%emt 0:00:42]} c6 {[%emt 0:05:48]} 5. a4 {[%emt 0:05:26]} a5 {[%emt 0:00:00]} 6. g3 {[%emt 0:02:40] B07: Pirc Defence: Miscellaneous Systems.} Be7 {[%emt 0:00:00]} 7. Bg2 {[%emt 0:00:49]} O-O {[%emt 0:00:00]} 8. O-O {[%emt 0:00:09]} Qc7 {[%emt 0:03:52]} 9. h3 {[%emt 0:00:46]} Rd8 {[%emt 0:02:20]} 10. Be3 {[%emt 0:03:19]} Nbd7 {[%emt 0:05:32]} 11. g4 {[%emt 0:02:39]} Nf8 {[%emt 0:09:35]} 12. f4 $146 {[%emt 0:04:22]} ({Predecessor:} 12. Ng3 g6 13. f4 exf4 14. Bxf4 Ne6 15. Be3 Nd7 16. Qd2 Rf8 17. Rf2 Qd8 18. Raf1 {1-0 Doric,N (2261)-Kolanovic,K (1857) Zadar op-B 25th 2018 (4)}) 12... exf4 {[%emt 0:01:15]} 13. Nxf4 {[%emt 0:02:32]} h6 {[%emt 0:09:16]} 14. Qd2 {[%emt 0:04:23]} N8h7 {[%emt 0:07:57]} 15. Nfe2 {[%emt 0:01:50]} ({Better is} 15. Rae1 $16) 15... Rb8 {[%emt 0:03:31]} 16. Ng3 {[%emt 0:03:55]} b5 {[%emt 0:04:46]} 17. axb5 {[%emt 0:02:25]} cxb5 {[%emt 0:00:15]} 18. Nf5 {[%emt 0:01:02]} (18. Bf4 $16) 18... b4 $14 {[%emt 0:02:35]} 19. Ne2 {[%emt 0:00:11]} Bf8 {[%emt 0:08:42]} 20. Neg3 {[%emt 0:04:09]} Re8 {[%emt 0:01:35]} 21. Bf4 {[%emt 0:03:37]} Bxf5 {[%emt 0:01:17]} 22. gxf5 {[%emt 0:01:53]} Rbc8 {[%emt 0:01:12]} 23. Rac1 {[%emt 0:01:33]} (23. Rfc1 $16) 23... Qb6 {[%emt 0:00:37]} 24. Kh1 {[%emt 0:00:41]} Nd7 {[%emt 0:06:00]} 25. Rce1 {[%emt 0:00:18]} Rc4 {[%emt 0:03:19]} (25... Be7 $11) 26. c3 {[%emt 0:01:56]} Qc7 {[%emt 0:02:51]} 27. Rf3 {[%emt 0:02:01]} bxc3 {[%emt 0:02:44]} 28. bxc3 {[%emt 0:07:14]} Rc8 {[%emt 0:05:55]} 29. e5 {[%emt 0:00:47]} Nb6 $2 {[%emt 0:00:49][%mdl 8192]} (29... Rxc3 $2 30. Rxc3 Qxc3 31. e6 $18 (31. exd6 Qxd2 32. Bxd2 Nhf6 $15)) (29... dxe5 $16 {is a better chance.} 30. dxe5 Ng5) 30. Ne4 {[%emt 0:00:52]} (30. f6 $142 g5 31. exd6) 30... dxe5 $18 {[%emt 0:04:23]} 31. dxe5 {[%emt 0:02:43]} Rd8 {[%emt 0:01:40]} 32. Rd3 {[%emt 0:02:04]} (32. e6 Rxd2 33. Bxc7 Rxg2 34. Bxb6 Ra2) 32... Rxd3 {[%emt 0:01:01]} 33. Qxd3 {[%emt 0:00:02]} Qc8 {[%emt 0:01:19]} (33... Ng5 $142) 34. Be3 $18 {[%emt 0:05:25]} Na4 {[%emt 0:01:08]} 35. Bd4 {[%emt 0:01:23]} Rc7 {[%emt 0:00:58]} (35... Rc6 $142 36. Nd6 Bxd6 37. exd6 Rxd6) 36. Nd6 $18 {[%emt 0:03:33]} Qd8 {[%emt 0:00:54]} 37. Nb5 {[%emt 0:01:34]} Rc8 {[%emt 0:01:55]} 38. e6 {[%emt 0:00:05]} fxe6 {[%emt 0:01:37]} 39. fxe6 {[%emt 0:00:04]} Be7 {[%emt 0:00:14]} 40. Qg6 {[%emt 0:00:43]} Qf8 {[%emt 0:01:55]} 41. Rf1 {[%emt 0:30:10]} Nf6 {[%emt 0:01:14]} 42. Bxf6 {[%emt 0:00:00]} Bxf6 {[%emt 0:01:26]} 43. Be4 {[%emt 0:00:00]} Qd8 {[%emt 0:01:20]} 44. Nd6 {[%emt 0:00:00]} Rxc3 {[%emt 0:02:20]} 45. Rxf6 {[%emt 0:00:00]} Rc1+ {[%emt 0:04:40]} 46. Kg2 {[%emt 0:00:00]} Qxf6 {[%emt 0:01:00]} 47. Qe8+ $2 {[%emt 0:00:00]} (47. Qxf6 {mates} gxf6 48. e7 Rc8 49. Nxc8 Kf7 50. Bd5+ Ke8 51. Bc6+ Kf7 52. e8=Q+ (52. e8=R Nc3 $18) 52... Kg7 53. Ne7 (53. Bxa4 f5 54. Qe7+ Kh8 55. Qf7 h5 56. Bb3 h4 57. Qg8#) 53... f5 54. Qg6+ Kh8 55. Qxh6#) 1-0

[Event "Reykjavik Open 2024"]
[Site "Reykjavik"]
[Date "2024.03.16"]
[Round "2.23"]
[White "Birkisson, Bardur Orn"]
[Black "Larkin, Vladyslav"]
[Result "*"]
[ECO "B07"]
[WhiteElo "2189"]
[BlackElo "2450"]
[Annotator "RC"]
[PlyCount "32"]
[EventDate "2024.03.12"]
[EventCountry "ISL"]
[SourceTitle "playchess.com"]
[Source "ChessBase"]
[SourceQuality "1"]
[TimeControl "40/5400+30:1800+30"]

1. e4 {[%emt 0:00:07]} d6 {[%emt 0:00:27]} 2. d4 {[%emt 0:00:06]} Nf6 {[%emt 0:00:08]} 3. Nc3 {[%emt 0:00:06]} e5 {[%emt 0:00:23]} 4. Nge2 {[%emt 0:00:42]} c6 {[%emt 0:00:21]} 5. a4 {[%emt 0:05:26]} a5 {[%emt 0:00:00]} 6. g3 {[%emt 0:02:40]} Be7 {[%emt 0:00:00]} 7. Bg2 {[%emt 0:00:49]} O-O {[%emt 0:00:00]} 8. O-O {[%emt 0:00:09]} Qc7 {[%emt 0:03:52]} 9. h3 {[%emt 0:00:46]} Rd8 {[%emt 0:02:20]} 10. Be3 {[%emt 0:03:19]} Nbd7 {[%emt 0:05:32]} 11. g4 {[%emt 0:02:39]} Nf8 {[%emt 0:09:35]} 12. f4 {[%emt 0:04:22]} exf4 {[%emt 0:01:15]} 13. Nxf4 {[%emt 0:02:32]} h6 {[%emt 0:09:16]} 14. Qd2 {[%emt 0:04:23]} N8h7 {[%emt 0:07:57]} 15. Nfe2 {[%emt 0:01:50]} Rb8 {[%emt 0:03:31]} 16. Ng3 {[%emt 0:03:55]} b5 {[%emt 0:04:46]} *

[Event "Reykjavik Open 2024"]
[Site "Reykjavik"]
[Date "2024.03.16"]
[Round "2.24"]
[White "Wadsworth, Matthew J"]
[Black "Loncke, Matthieu"]
[Result "1-0"]
[ECO "E62"]
[WhiteElo "2450"]
[BlackElo "2175"]
[Annotator "RC"]
[PlyCount "73"]
[EventDate "2024.03.12"]
[EventCountry "ISL"]
[SourceTitle "playchess.com"]
[Source "ChessBase"]
[SourceQuality "1"]
[TimeControl "40/5400+30:1800+30"]

1. Nf3 {[%emt 0:02:30]} Nf6 {[%emt 0:01:01]} 2. g3 {[%emt 0:00:23]} g6 {[%emt 0:00:45]} 3. Bg2 {[%emt 0:00:49]} Bg7 {[%emt 0:00:12]} 4. c4 {[%emt 0:00:30]} O-O {[%emt 0:00:39]} 5. d4 {[%emt 0:00:14]} d6 {[%emt 0:00:10]} 6. Nc3 {[%emt 0:00:18]} Nc6 {[%emt 0:01:25]} 7. d5 {[%emt 0:00:10]} Na5 {[%emt 0:05:40]} 8. b3 {[%emt 0:00:59]} c6 {[%emt 0:08:50]} 9. Bb2 {[%emt 0:01:02]} cxd5 {[%emt 0:01:23]} 10. cxd5 {[%emt 0:01:45]} Bd7 {[%emt 0:01:36]} 11. O-O {[%emt 0:03:20]} Rc8 {[%emt 0:06:53]} 12. Rc1 {[%emt 0:13:08]} b5 {[%emt 0:14:24]} 13. Nd4 {[%emt 0:04:48]} Qb6 {[%emt 0:03:23]} 14. Qd2 {[%emt 0:02:25]} Rc7 {[%emt 0:11:06]} 15. Nb1 {[%emt 0:02:48]} Rfc8 {[%emt 0:01:40]} 16. Rxc7 {[%emt 0:04:02]} Rxc7 {[%emt 0:00:12]} 17. Bc3 {[%emt 0:02:07]} Nb7 {[%emt 0:02:15]} 18. b4 {[%emt 0:06:01]} Ng4 {[%emt 0:09:12]} 19. Nc6 {[%emt 0:06:22]} Bxc6 {[%emt 0:01:00]} 20. dxc6 {[%emt 0:00:08]} Nd8 {[%emt 0:01:02]} 21. Bxg7 {[%emt 0:00:09]} Kxg7 {[%emt 0:00:13]} 22. Nc3 {[%emt 0:00:25]} Nf6 {[%emt 0:02:26]} 23. g4 {[%emt 0:02:15]} e6 {[%emt 0:05:10]} 24. Qxd6 {[%emt 0:07:38]} Nxc6 {[%emt 0:03:42]} 25. Nxb5 {[%emt 0:00:59]} Ne8 {[%emt 0:00:45]} 26. Qc5 {[%emt 0:00:08]} Qxc5 {[%emt 0:01:39]} 27. bxc5 {[%emt 0:00:09]} Rc8 {[%emt 0:00:10]} 28. Rc1 {[%emt 0:01:08]} Kf8 {[%emt 0:04:27]} 29. Bxc6 {[%emt 0:06:27]} Rxc6 {[%emt 0:00:06]} 30. Nxa7 {[%emt 0:00:19]} Ra6 {[%emt 0:01:05]} 31. Nb5 {[%emt 0:00:08]} Rxa2 {[%emt 0:03:34]} 32. c6 {[%emt 0:01:07]} Ra5 {[%emt 0:07:30]} 33. c7 {[%emt 0:01:03]} Nxc7 {[%emt 0:00:06]} 34. Nxc7 {[%emt 0:00:04]} Ke7 {[%emt 0:00:10]} 35. Rb1 {[%emt 0:00:46]} Ra7 {[%emt 0:01:05]} 36. Nb5 {[%emt 0:00:08]} Rb7 {[%emt 0:00:05]} 37. g5 {[%emt 0:00:31]} 1-0

[Event "Reykjavik Open 2024"]
[Site "Reykjavik"]
[Date "2024.03.16"]
[Round "2.25"]
[White "Hill, Alistair"]
[Black "Mammadzada, Gunay"]
[Result "0-1"]
[ECO "B90"]
[WhiteElo "2187"]
[BlackElo "2449"]
[Annotator "TA"]
[PlyCount "96"]
[EventDate "2024.03.12"]
[EventCountry "ISL"]
[SourceTitle "playchess.com"]
[Source "ChessBase"]
[SourceQuality "1"]
[TimeControl "40/5400+30:1800+30"]

{[%evp 10,96,19,-2,20,0,8,0,31,7,-8,0,0,-16,-12,-16,-13,-44,-18,-26,-16,-20,-26,-22,-13,-63,-69,-95,0,-36,-11,-22,0,0,0,0,0,0,0,-12,0,-7,0,0,0,-12,-15,-2,0,-12,0,-29,-12,-22,16,15,9,17,16,18,7,0,0,0,0,-25,-37,-79,-56,-174,-168,-169,-175,-183,-177,-270,-285,-256,-269,-273,-285,-281,-273,-380,-370,-472,-443,-539,-558]} 1. e4 {[%emt 0:04:02]} c5 {[%emt 0:00:14]} 2. Nf3 {[%emt 0:00:05]} d6 {[%emt 0:00:04]} 3. d4 {[%emt 0:00:04]} cxd4 {[%emt 0:00:15]} 4. Nxd4 {[%emt 0:00:05]} Nf6 {[%emt 0:00:05]} 5. Nc3 {[%emt 0:00:05]} a6 {[%emt 0:00:03]} 6. Rg1 {[%emt 0:01:06]} h5 {[%emt 0:03:35]} 7. Be3 {[%emt 0:00:32]} e5 {[%emt 0:05:12]} 8. Nf3 {[%emt 0:01:22]} Qc7 {[%emt 0:07:24] Inhibits Bc4. The position is equal.} 9. Qd2 {[%emt 0:16:45]} Be7 {[%emt 0:04:03]} 10. O-O-O {[%emt 0:01:36]} b5 {[%emt 0:02:48]} 11. Ng5 {[%emt 0:01:39]} Bb7 {[%emt 0:02:09]} 12. Kb1 {[%emt 0:25:15]} Nbd7 {[%emt 0:01:44]} 13. f3 {[%emt 0:02:57]} Nb6 {[%emt 0:09:26]} 14. Qf2 {[%emt 0:04:17]} Nc4 {[%emt 0:03:45]} 15. Bxc4 {[%emt 0:00:15]} Qxc4 {[%emt 0:00:10]} 16. Rd3 {[%emt 0:10:32]} a5 {[%emt 0:16:21]} 17. Bc1 {[%emt 0:02:28]} (17. g4 $11) 17... b4 $15 {[%emt 0:05:11]} 18. Nd1 {[%emt 0:07:47][%cal Bc3d1,Bd1e3,Be3d5][%mdl 32]} Nd7 {[%emt 0:09:23]} (18... a4 $17) 19. Nh3 {[%emt 0:03:53]} Nc5 {[%emt 0:02:10]} 20. Rd2 {[%emt 0:00:05]} g6 {[%emt 0:07:50]} 21. Ne3 {[%emt 0:00:14]} Qb5 {[%emt 0:01:19]} 22. Nd5 {[%emt 0:00:19]} Bd8 {[%emt 0:00:24] Dodges Nc7+} 23. Rgd1 {[%emt 0:03:14]} Rc8 {[%emt 0:01:04]} 24. Qe2 {[%emt 0:00:28]} Qxe2 {[%emt 0:03:47]} 25. Rxe2 {[%emt 0:00:04]} Ba6 {[%emt 0:01:08]} 26. Ree1 {[%emt 0:00:33]} f6 {[%emt 0:00:51]} 27. Be3 {[%emt 0:03:06]} Kf7 {[%emt 0:00:53]} (27... Rc6 {simplifies} 28. Bxc5 dxc5 29. c3 Kf7) 28. Nf2 {[%emt 0:01:40]} Ke6 {[%emt 0:03:47]} 29. Nd3 {[%emt 0:01:56]} Nd7 {[%emt 0:05:12]} (29... Nxd3 {simplifies} 30. cxd3 Bb7 31. Nb6 Rb8) 30. Nc1 {[%emt 0:00:51]} Rb8 {[%emt 0:02:53]} 31. Rd2 {[%emt 0:01:00]} Bb7 {[%emt 0:02:00]} 32. Red1 {[%emt 0:00:36]} Bxd5 {[%emt 0:00:17]} 33. Rxd5 {[%emt 0:00:08]} Bc7 {[%emt 0:00:05]} 34. Nb3 {[%emt 0:01:59]} Ra8 {[%emt 0:00:04]} 35. Nd2 {[%emt 0:00:22]} Ra6 {[%emt 0:00:26]} 36. Nc4 {[%emt 0:04:02]} Rb8 {[%emt 0:00:04]} 37. Bd2 {[%emt 0:02:39]} a4 {[%emt 0:02:03]} 38. b3 {[%emt 0:00:54]} f5 {[%emt 0:00:31] ...Nf6 would now be deadly.} 39. Nb2 {[%emt 0:00:34]} (39. Rd3 $1 $15) 39... axb3 {[%emt 0:00:35]} 40. cxb3 {[%emt 0:00:10] [#]} fxe4 {[%emt 0:00:10]} 41. fxe4 {[%emt 0:02:06]} Nf6 {[%emt 0:00:39]} 42. Rc1 {[%emt 0:06:27]} (42. Nd3 {is a better defense.} Nxe4 (42... Nxd5 43. exd5+ Kd7 44. Nxb4 $17) 43. Be1) 42... Nxd5 $19 {[%emt 0:06:24]} 43. exd5+ {[%emt 0:00:05]} Kd7 $1 {[%emt 0:00:04]} 44. Rf1 {[%emt 0:00:25]} Ra5 {[%emt 0:00:29]} 45. Rf7+ {[%emt 0:00:06]} Kc8 {[%emt 0:00:05]} 46. Be3 {[%emt 0:02:02]} Rxd5 {[%emt 0:00:46]} 47. Nc4 {[%emt 0:00:07]} Rd3 {[%emt 0:04:03]} 48. Ba7 {[%emt 0:00:25]} Rb7 {[%emt 0:00:25] Weighted Error Value: White=0.24 (precise) /Black=0.08 (flawless) .  Mistake:       	White=3     	Black=1      Inaccurate:     	White=5     	Black=3      OK:         	White=13    	Black=22     Best:        	White=1     	Black=1      Strong:       	---       	Black=1} 0-1